[Event "Jerry Simon Memorial 2024"]
[Site "New York"]
[Date "2024.11.23"]
[Round "1.8"]
[White "Dalhouse, Justin"]
[Black "Cruz, Paul"]
[Result "1-0"]
[ECO "B12"]
[WhiteElo "1903"]
[BlackElo "1708"]
[Annotator "RC"]
[PlyCount "79"]
[EventDate "2024.11.22"]
[EventType "swiss"]
[EventCountry "USA"]
[SourceTitle "playchess.com"]
[Source "ChessBase"]
[SourceQuality "1"]
[TimeControl "5400+30"]

1. e4 {[%emt 0:13:47]} c6 {[%emt 0:00:20]} 2. d4 {[%emt 0:00:07]} d5 {[%emt 0:00:13]} 3. e5 {[%emt 0:00:05]} c5 {[%emt 0:00:24]} 4. c3 {[%emt 0:00:02]} Nc6 {[%emt 0:00:44]} 5. Be2 {[%emt 0:00:01]} cxd4 {[%emt 0:01:33]} 6. cxd4 {[%emt 0:00:03]} Bf5 {[%emt 0:01:17]} 7. Nf3 {[%emt 0:00:02]} e6 {[%emt 0:00:34]} 8. Nc3 {[%emt 0:00:08]} a6 {[%emt 0:06:26]} 9. O-O {[%emt 0:00:26]} Nh6 {[%emt 0:00:28]} 10. a3 {[%emt 0:00:22]} Bg6 {[%emt 0:00:57]} 11. b4 {[%emt 0:00:54]} b5 {[%emt 0:01:25]} 12. Be3 {[%emt 0:00:50]} Nf5 {[%emt 0:01:19]} 13. Rc1 {[%emt 0:00:09]} Rc8 {[%emt 0:03:26]} 14. Qb3 {[%emt 0:44:30]} Be7 {[%emt 0:19:56]} 15. Nxb5 {[%emt 0:00:24]} O-O {[%emt 0:00:57]} 16. Nc3 {[%emt 0:01:07]} Qb6 {[%emt 0:03:56]} 17. Na4 {[%emt 0:00:17]} Qa7 {[%emt 0:03:36]} 18. Nc5 {[%emt 0:00:06]} Bxc5 {[%emt 0:01:43]} 19. Rxc5 {[%emt 0:00:44]} Rc7 {[%emt 0:03:54]} 20. Rfc1 {[%emt 0:01:31]} Nfe7 {[%emt 0:05:18]} 21. Qa4 {[%emt 0:00:56]} Rcc8 {[%emt 0:19:14]} 22. Qxa6 {[%emt 0:01:38]} Qc7 {[%emt 0:03:14]} 23. Qa4 {[%emt 0:01:50]} Ra8 {[%emt 0:00:46]} 24. Qb3 {[%emt 0:00:26]} Qb6 {[%emt 0:01:54]} 25. Bb5 {[%emt 0:01:29]} Na7 {[%emt 0:01:30]} 26. a4 {[%emt 0:00:02]} h6 {[%emt 0:06:47]} 27. a5 {[%emt 0:00:42]} Qb8 {[%emt 0:01:04]} 28. Be2 {[%emt 0:00:06]} Rc8 {[%emt 0:01:37]} 29. b5 {[%emt 0:00:45]} Nac6 {[%emt 0:00:38]} 30. a6 {[%emt 0:00:46]} Rxa6 {[%emt 0:00:35]} 31. Qc3 {[%emt 0:00:02]} Ra2 {[%emt 0:02:14]} 32. Bf1 {[%emt 0:04:40]} Na7 {[%emt 0:01:01]} 33. h3 {[%emt 0:02:35]} Ra4 {[%emt 0:04:18]} 34. Nd2 {[%emt 0:00:15]} Rxc5 {[%emt 0:00:35]} 35. Qxc5 {[%emt 0:00:14]} Nf5 {[%emt 0:00:23]} 36. b6 {[%emt 0:00:13]} Kh7 {[%emt 0:01:55]} 37. Qc7 {[%emt 0:01:32]} Qf8 {[%emt 0:01:12]} 38. bxa7 {[%emt 0:00:35]} Qa3 {[%emt 0:00:12]} 39. Qc3 {[%emt 0:00:56]} Qe7 {[%emt 0:00:41]} 40. Qc5 {[%emt 0:00:50]} 1-0

[Event "Jerry Simon Memorial 2024"]
[Site "New York"]
[Date "2024.11.23"]
[Round "1.9"]
[White "Koppenaal, Richard"]
[Black "Berg, George"]
[Result "0-1"]
[ECO "A57"]
[WhiteElo "1733"]
[BlackElo "1952"]
[Annotator "RC"]
[PlyCount "56"]
[EventDate "2024.11.22"]
[EventType "swiss"]
[EventCountry "USA"]
[SourceTitle "playchess.com"]
[Source "ChessBase"]
[SourceQuality "1"]
[TimeControl "5400+30"]

1. d4 {[%emt 0:00:04]} Nf6 {[%emt 0:00:05]} 2. c4 {[%emt 0:00:04]} c5 {[%emt 0:00:07]} 3. d5 {[%emt 0:00:01]} b5 {[%emt 0:00:08]} 4. cxb5 {[%emt 0:00:05]} a6 {[%emt 0:00:05]} 5. e3 {[%emt 0:00:04]} axb5 {[%emt 0:00:07]} 6. Bxb5 {[%emt 0:00:18]} Qa5+ {[%emt 0:00:06]} 7. Nc3 {[%emt 0:00:04]} Bb7 {[%emt 0:00:08]} 8. Bd2 {[%emt 0:00:11]} Qb6 {[%emt 0:00:05]} 9. Nf3 {[%emt 0:00:12]} Nxd5 {[%emt 0:00:06]} 10. a4 {[%emt 0:00:03]} Nf6 {[%emt 0:00:10]} 11. O-O {[%emt 0:00:17]} e6 {[%emt 0:00:04]} 12. e4 {[%emt 0:05:29]} Be7 {[%emt 0:03:32]} 13. e5 {[%emt 0:07:00]} Nd5 {[%emt 0:03:34]} 14. Nxd5 {[%emt 0:10:21]} Bxd5 {[%emt 0:00:09]} 15. Be3 {[%emt 0:00:54]} Nc6 {[%emt 0:06:05]} 16. Qe2 {[%emt 0:07:40]} O-O {[%emt 0:00:52]} 17. Rfc1 {[%emt 0:04:46]} Bxf3 {[%emt 0:06:21]} 18. Qxf3 {[%emt 0:00:06]} Nxe5 {[%emt 0:00:07]} 19. Qg3 {[%emt 0:01:34]} Nc6 {[%emt 0:01:24]} 20. Ra3 {[%emt 0:09:27]} Rfc8 {[%emt 0:09:59]} 21. Rac3 {[%emt 0:04:54]} d6 {[%emt 0:00:35]} 22. Rc4 {[%emt 0:05:16]} Qb7 {[%emt 0:12:05]} 23. Bh6 {[%emt 0:05:45]} g6 {[%emt 0:00:24]} 24. h4 {[%emt 0:03:20]} Nd4 {[%emt 0:01:55]} 25. R4c3 {[%emt 0:04:29]} Qxb5 {[%emt 0:02:46]} 26. axb5 {[%emt 0:00:07]} Ne2+ {[%emt 0:00:07]} 27. Kf1 {[%emt 0:00:01]} Nxg3+ {[%emt 0:00:08]} 28. fxg3 {[%emt 0:00:03]} Rcb8 {[%emt 0:01:11]} 0-1

[Event "Jerry Simon Memorial 2024"]
[Site "New York"]
[Date "2024.11.23"]
[Round "1.10"]
[White "Olsen, Robert"]
[Black "Sarwar, Sawyer L"]
[Result "0-1"]
[ECO "A62"]
[WhiteElo "1877"]
[BlackElo "1775"]
[Annotator "NA RC"]
[PlyCount "80"]
[EventDate "2024.11.22"]
[EventType "swiss"]
[EventCountry "USA"]
[SourceTitle "playchess.com"]
[Source "ChessBase"]
[SourceQuality "1"]
[TimeControl "5400+30"]

1. d4 {[%emt 0:00:03]} Nf6 {[%emt 0:00:09]} 2. c4 {[%emt 0:00:05]} e6 {[%emt 0:00:08]} 3. g3 {[%emt 0:00:04]} c5 {[%emt 0:00:11]} 4. d5 {[%emt 0:00:04]} exd5 {[%emt 0:00:08]} 5. cxd5 {[%emt 0:00:03]} d6 {[%emt 0:00:10]} 6. Nc3 {[%emt 0:00:10]} g6 {[%emt 0:00:06]} 7. Bg2 {[%emt 0:00:04]} Bg7 {[%emt 0:00:14]} 8. Nf3 {[%emt 0:00:07]} O-O {[%emt 0:00:08]} 9. O-O {[%emt 0:00:06]} Re8 {[%emt 0:00:28]} 10. Bf4 {[%emt 0:00:19] 10.Re1 is becoming the main line.} a6 {[%emt 0:00:31]} 11. a4 {[%emt 0:00:09]} Qc7 {[%emt 0:04:37]} 12. Qd2 {[%emt 0:00:36] A62: Modern Benoni: Fianchetto Variation without early ...Nbd7.} Bg4 {[%emt 0:02:17]} 13. Rfc1 $146 {[%emt 0:05:10]} ({Predecessor:} 13. Ng5 Bf5 14. e4 Bg4 15. Rae1 Nh5 16. Be3 h6 17. Nf3 Kh7 18. Nh4 Bd7 19. f4 Nf6 {1-0 Cech,P (2430)-Sandner,G (2280) BL2-Ost 0809 2008 (2.4)}) 13... Nbd7 {[%emt 0:01:25]} 14. a5 {[%emt 0:04:26]} Bxf3 {[%emt 0:11:32]} 15. Bxf3 {[%emt 0:05:21]} Ne5 {[%emt 0:00:13]} 16. Na4 {[%emt 0:07:35]} Nxf3+ {[%emt 0:01:19]} 17. exf3 {[%emt 0:00:27]} Nd7 {[%emt 0:03:43]} 18. Rab1 {[%emt 0:00:42]} Ne5 {[%emt 0:01:48]} 19. Kg2 {[%emt 0:01:00]} Qe7 {[%emt 0:01:38]} 20. Bxe5 {[%emt 0:09:40]} Qxe5 {[%emt 0:01:32]} 21. b4 {[%emt 0:00:57]} g5 {[%emt 0:13:41]} 22. bxc5 {[%emt 0:17:45]} g4 {[%emt 0:00:54]} 23. Qf4 {[%emt 0:17:42]} Qxd5 {[%emt 0:04:54]} 24. Qxg4 {[%emt 0:00:46]} ({Don't play} 24. cxd6 gxf3+ 25. Qxf3 Qxf3+ 26. Kxf3 Rad8 $18) 24... h5 {[%emt 0:05:24]} 25. Qd7 {[%emt 0:05:13]} Re2 {[%emt 0:03:03]} (25... Qa2 $16) 26. Qxd6 $2 {[%emt 0:03:00]} (26. Qxb7 $18 Qxb7 27. Rxb7 dxc5 28. Nxc5) 26... Qa2 {[%emt 0:02:36]} 27. Rf1 {[%emt 0:01:49]} Qxa4 {[%emt 0:00:46]} 28. Rxb7 {[%emt 0:00:16]} Qd4 {[%emt 0:01:32]} 29. Qc7 {[%emt 0:01:53]} Qd5 {[%emt 0:00:58]} 30. Rd1 {[%emt 0:03:21]} Qe6 {[%emt 0:00:12]} 31. Rd8+ {[%emt 0:03:19]} Rxd8 {[%emt 0:00:35]} 32. Qxd8+ {[%emt 0:00:03]} Qe8 {[%emt 0:00:10]} 33. Qc7 {[%emt 0:04:50]} Be5 {[%emt 0:03:00]} 34. Qb6 {[%emt 0:00:05]} Rb2 {[%emt 0:00:33]} 35. Qxa6 {[%emt 0:00:24]} Qc8 {[%emt 0:01:34]} 36. c6 {[%emt 0:00:35]} Bd4 {[%emt 0:00:13]} 37. Qc4 $2 {[%emt 0:01:56]} (37. Qd3 $14 Qxc6 (37... Rxf2+ 38. Kh1 $11) 38. Rxb2 Bxb2 39. Qd8+ Kg7 40. Qg5+ Qg6 41. Qb5) 37... Rxf2+ {[%emt 0:01:52]} 38. Kh1 {[%emt 0:00:10]} Qf5 {[%emt 0:00:22]} 39. Rb8+ {[%emt 0:01:32]} Kh7 {[%emt 0:00:07]} 40. Qb3 {[%emt 0:00:47]} Rf1+ {[%emt 0:00:14]} 0-1